[Event "*** Titled Tuesday Blitz"]
[Site "Chess.com"]
[Date "2018.10.02"]
[Round "1"]
[White "Zarikovs1999"]
[Black "nearestway"]
[Result "0-1"]
[WhiteElo "2193"]
[BlackElo "2548"]
[TimeControl "180+2"]
[EndTime "13:09:11 PDT"]
[Termination "nearestway won by resignation"]

1. e4 {[%clk 0:02:58]} 1... c5 {[%clk 0:03:00.7]} 2. Nf3 {[%clk 0:02:56.4]} 2...
d6 {[%clk 0:03:01.4]} 3. d4 {[%clk 0:02:57.7]} 3... cxd4 {[%clk 0:03:03.3]} 4.
Nxd4 {[%clk 0:02:59]} 4... Nf6 {[%clk 0:03:04.2]} 5. Nc3 {[%clk 0:03:00.4]} 5...
a6 {[%clk 0:03:05.5]} 6. Be3 {[%clk 0:03:01.8]} 6... e5 {[%clk 0:03:06.3]} 7.
Nb3 {[%clk 0:03:03.3]} 7... Be7 {[%clk 0:03:07.1]} 8. f3 {[%clk 0:03:03.6]} 8...
Be6 {[%clk 0:03:07.8]} 9. Be2 {[%clk 0:03:04.6]} 9... O-O {[%clk 0:03:08.2]} 10.
O-O {[%clk 0:03:06.1]} 10... Nbd7 {[%clk 0:03:08.4]} 11. Qd2 {[%clk 0:03:07.4]}
11... Nb6 {[%clk 0:03:07]} 12. Rad1 {[%clk 0:03:02.6]} 12... Qc7 {[%clk
0:03:02.1]} 13. Bxb6 {[%clk 0:02:56.9]} 13... Qxb6+ {[%clk 0:03:02.5]} 14. Kh1
{[%clk 0:02:58.8]} 14... Rac8 {[%clk 0:03:03.2]} 15. Nd5 {[%clk 0:02:57.8]}
15... Nxd5 {[%clk 0:02:57.4]} 16. exd5 {[%clk 0:02:59.7]} 16... Bd7 {[%clk
0:02:58.6]} 17. c4 {[%clk 0:02:38.5]} 17... f5 {[%clk 0:02:46.5]} 18. Na5 {[%clk
0:02:19]} 18... Qa7 {[%clk 0:02:32.2]} 19. b4 {[%clk 0:02:14.8]} 19... Rfe8
{[%clk 0:02:13.4]} 20. Bd3 {[%clk 0:01:49.4]} 20... Bf6 {[%clk 0:02:01.5]} 21.
Rfe1 {[%clk 0:01:46.7]} 21... g6 {[%clk 0:02:00]} 22. Re2 {[%clk 0:01:31.5]}
22... Kg7 {[%clk 0:01:53.2]} 23. Rde1 {[%clk 0:01:24.6]} 23... b6 {[%clk
0:01:50.4]} 24. Nb3 {[%clk 0:01:19.8]} 24... Ra8 {[%clk 0:01:43.6]} 25. Rc1
{[%clk 0:01:10.9]} 25... Rec8 {[%clk 0:01:42.6]} 26. Qc2 {[%clk 0:01:01.8]}
26... a5 {[%clk 0:01:35.5]} 27. a3 {[%clk 0:01:00.9]} 27... axb4 {[%clk
0:01:28.1]} 28. axb4 {[%clk 0:01:02.8]} 28... Qa3 {[%clk 0:01:28.7]} 29. Rb1
{[%clk 0:00:38.5]} 29... Qxb4 {[%clk 0:01:02.5]} 30. Nd4 {[%clk 0:00:30.1]}
30... Qc5 {[%clk 0:01:03]} 31. Ne6+ {[%clk 0:00:24.8]} 31... Bxe6 {[%clk
0:01:03.4]} 32. dxe6 {[%clk 0:00:26.7]} 32... Qc7 {[%clk 0:00:49.2]} 33. g3
{[%clk 0:00:24.4]} 33... Qc6 {[%clk 0:00:41.4]} 34. Kg2 {[%clk 0:00:23.4]} 34...
Ra3 {[%clk 0:00:40.8]} 35. Rb3 {[%clk 0:00:22.2]} 35... Rca8 {[%clk 0:00:36.8]}
36. Rxa3 {[%clk 0:00:23]} 36... Rxa3 {[%clk 0:00:38.7]} 37. h3 {[%clk
0:00:20.3]} 37... h5 {[%clk 0:00:38.2]} 38. Qd2 {[%clk 0:00:15.1]} 38... Ra7
{[%clk 0:00:28.8]} 39. Qc2 {[%clk 0:00:15.9]} 39... Re7 {[%clk 0:00:29.6]} 40.
Qb3 {[%clk 0:00:15.6]} 40... Rxe6 {[%clk 0:00:28.7]} 41. c5 {[%clk 0:00:16.9]}
41... dxc5 {[%clk 0:00:29.8]} 42. Bc4 {[%clk 0:00:18.2]} 42... Rd6 {[%clk
0:00:30.7]} 43. Ra2 {[%clk 0:00:19.7]} 43... Qd7 {[%clk 0:00:28.5]} 44. h4
{[%clk 0:00:12]} 44... f4 {[%clk 0:00:24.1]} 45. Bb5 {[%clk 0:00:09.7]} 45...
Rd2+ {[%clk 0:00:24.1]} 46. Rxd2 {[%clk 0:00:10.1]} 46... Qxd2+ {[%clk
0:00:25.1]} 47. Kh3 {[%clk 0:00:11.6]} 47... Qf2 {[%clk 0:00:22.9]} 48. gxf4
{[%clk 0:00:11.6]} 48... exf4 {[%clk 0:00:23.7]} 0-1

[Event "*** Titled Tuesday Blitz"]
[Site "Chess.com"]
[Date "2018.10.02"]
[Round "1"]
[White "Caterpiller35"]
[Black "Lovkov_Roman"]
[Result "0-1"]
[WhiteElo "2326"]
[BlackElo "2637"]
[TimeControl "180+2"]
[EndTime "13:09:30 PDT"]
[Termination "Lovkov_Roman won by resignation"]

1. d4 {[%clk 0:01:29.8]} 1... Nf6 {[%clk 0:02:59.4]} 2. Bg5 {[%clk 0:01:29.1]}
2... e6 {[%clk 0:02:56.8]} 3. e4 {[%clk 0:01:28.2]} 3... h6 {[%clk 0:02:56.6]}
4. Bxf6 {[%clk 0:01:28.8]} 4... Qxf6 {[%clk 0:02:58.5]} 5. c3 {[%clk 0:01:30.2]}
5... d6 {[%clk 0:02:56]} 6. Nd2 {[%clk 0:01:29.4]} 6... g5 {[%clk 0:02:56.5]} 7.
Bd3 {[%clk 0:01:29.3]} 7... Bg7 {[%clk 0:02:57.3]} 8. Ne2 {[%clk 0:01:29.2]}
8... Qe7 {[%clk 0:02:57.9]} 9. O-O {[%clk 0:01:30.5]} 9... b6 {[%clk 0:02:56.9]}
10. f4 {[%clk 0:01:31.5]} 10... Bb7 {[%clk 0:02:55.8]} 11. f5 {[%clk 0:01:31]}
11... Nd7 {[%clk 0:02:54.9]} 12. Ng3 {[%clk 0:01:31.6]} 12... O-O-O {[%clk
0:02:32.4]} 13. a4 {[%clk 0:01:30.1]} 13... h5 {[%clk 0:02:04.9]} 14. Nxh5
{[%clk 0:01:27.1]} 14... Bh6 {[%clk 0:02:06.3]} 15. g4 {[%clk 0:01:20.3]} 15...
Nf6 {[%clk 0:01:55]} 16. Nxf6 {[%clk 0:01:16.5]} 16... Qxf6 {[%clk 0:01:56.9]}
17. fxe6 {[%clk 0:01:16.2]} 17... Qxe6 {[%clk 0:01:57.9]} 18. Qf3 {[%clk
0:01:15.8]} 18... Rd7 {[%clk 0:01:55.9]} 19. a5 {[%clk 0:01:13.3]} 19... Bg7
{[%clk 0:01:55.3]} 20. axb6 {[%clk 0:01:12]} 20... axb6 {[%clk 0:01:52.9]} 21.
Qf5 {[%clk 0:01:06.6]} 21... Rh4 {[%clk 0:01:50]} 22. Bc4 {[%clk 0:00:26.4]}
22... Rxg4+ {[%clk 0:01:49.8]} 23. Kh1 {[%clk 0:00:25.4]} 23... Qxf5 {[%clk
0:01:43.9]} 24. Rxf5 {[%clk 0:00:24.5]} 24... Rxe4 {[%clk 0:01:43.4]} 25. d5
{[%clk 0:00:07.6]} 25... Re5 {[%clk 0:01:33.7]} 26. Raf1 {[%clk 0:00:03.9]}
26... Rxf5 {[%clk 0:01:29.4]} 27. Rxf5 {[%clk 0:00:04]} 27... g4 {[%clk
0:01:30.3]} 28. Kg2 {[%clk 0:00:04.1]} 28... Re7 {[%clk 0:01:30.7]} 29. Kf2
{[%clk 0:00:03.6]} 29... Bh6 {[%clk 0:01:30.7]} 30. Nf1 {[%clk 0:00:03.6]} 30...
Bc1 {[%clk 0:01:27.5]} 31. b3 {[%clk 0:00:03]} 31... Bb2 {[%clk 0:01:28.6]} 32.
Ne3 {[%clk 0:00:03.3]} 32... Bxc3 {[%clk 0:01:29.2]} 33. Nxg4 {[%clk 0:00:04.4]}
33... Bd4+ {[%clk 0:01:30.4]} 34. Kf3 {[%clk 0:00:05.4]} 34... Kd8 {[%clk
0:01:20.9]} 35. h4 {[%clk 0:00:04.3]} 35... Bc8 {[%clk 0:01:03.7]} 36. Rg5
{[%clk 0:00:03.8]} 36... Re8 {[%clk 0:01:04.8]} 37. h5 {[%clk 0:00:04.3]} 37...
f5 {[%clk 0:01:02.6]} 38. Nh6 {[%clk 0:00:04.7]} 38... Re3+ {[%clk 0:01:03]} 39.
Kf4 {[%clk 0:00:05.3]} 39... Re4+ {[%clk 0:01:03.4]} 40. Kf3 {[%clk 0:00:06.5]}
40... Re8 {[%clk 0:00:39]} 41. Nf7+ {[%clk 0:00:07.1]} 41... Ke7 {[%clk
0:00:39.7]} 42. Nh6 {[%clk 0:00:08]} 42... Rf8 {[%clk 0:00:39.9]} 43. Ng8+
{[%clk 0:00:04.8]} 43... Kd8 {[%clk 0:00:39.3]} 44. Nh6 {[%clk 0:00:04.9]} 44...
f4 {[%clk 0:00:39.8]} 45. Rg6 {[%clk 0:00:03]} 45... Bb7 {[%clk 0:00:39.3]} 46.
Ng4 {[%clk 0:00:03.9]} 46... b5 {[%clk 0:00:40.5]} 47. h6 {[%clk 0:00:04.2]}
47... bxc4 {[%clk 0:00:41.5]} 48. bxc4 {[%clk 0:00:06.1]} 48... Ke7 {[%clk
0:00:41.4]} 49. h7 {[%clk 0:00:07]} 49... Rh8 {[%clk 0:00:42.6]} 50. Rh6 {[%clk
0:00:07.9]} 50... Bg7 {[%clk 0:00:43]} 51. Rh5 {[%clk 0:00:08.6]} 51... Bc8
{[%clk 0:00:44]} 52. Kxf4 {[%clk 0:00:08.9]} 52... Kf7 {[%clk 0:00:42.8]} 53.
Ne3 {[%clk 0:00:09.4]} 53... Kg6 {[%clk 0:00:39.5]} 54. Rh3 {[%clk 0:00:09.7]}
54... Rxh7 {[%clk 0:00:39.9]} 55. Rxh7 {[%clk 0:00:09.6]} 55... Kxh7 {[%clk
0:00:40.8]} 56. Nf5 {[%clk 0:00:10.7]} 56... Bxf5 {[%clk 0:00:40.8]} 57. Kxf5
{[%clk 0:00:12.6]} 57... Bd4 {[%clk 0:00:42.4]} 58. Ke6 {[%clk 0:00:14.5]} 58...
Bb6 {[%clk 0:00:43.6]} 59. Kd7 {[%clk 0:00:16.4]} 59... Kg6 {[%clk 0:00:44.3]}
60. Kc6 {[%clk 0:00:18.3]} 0-1

[Event "*** Titled Tuesday Blitz"]
[Site "Chess.com"]
[Date "2018.10.02"]
[Round "1"]
[White "Slovak_fighter2000"]
[Black "jerom555888"]
[Result "0-1"]
[WhiteElo "2374"]
[BlackElo "2697"]
[TimeControl "180+2"]
[EndTime "13:09:32 PDT"]
[Termination "jerom555888 won by resignation"]

1. d4 {[%clk 0:02:59.5]} 1... f5 {[%clk 0:03:00]} 2. Qd3 {[%clk 0:02:58.2]} 2...
d5 {[%clk 0:03:00.4]} 3. Bf4 {[%clk 0:02:53.7]} 3... Nf6 {[%clk 0:03:01.4]} 4.
Nf3 {[%clk 0:02:54]} 4... Nc6 {[%clk 0:03:02.5]} 5. e3 {[%clk 0:02:52.2]} 5...
e6 {[%clk 0:03:02.8]} 6. Qb3 {[%clk 0:02:47.7]} 6... Bd6 {[%clk 0:03:01.5]} 7.
Bxd6 {[%clk 0:02:47.2]} 7... cxd6 {[%clk 0:03:02.5]} 8. Bd3 {[%clk 0:02:46.5]}
8... O-O {[%clk 0:03:02.7]} 9. O-O {[%clk 0:02:47.3]} 9... e5 {[%clk 0:03:01.4]}
10. Bb5 {[%clk 0:02:42.1]} 10... e4 {[%clk 0:02:59.1]} 11. Nfd2 {[%clk
0:02:40.2]} 11... f4 {[%clk 0:02:59.5]} 12. c4 {[%clk 0:02:37.2]} 12... Na5
{[%clk 0:02:52.3]} 13. Qd1 {[%clk 0:02:34.1]} 13... a6 {[%clk 0:02:53.1]} 14.
Ba4 {[%clk 0:02:27.6]} 14... fxe3 {[%clk 0:02:53]} 15. fxe3 {[%clk 0:02:27.3]}
15... dxc4 {[%clk 0:02:54.5]} 16. Bc2 {[%clk 0:02:21.8]} 16... d5 {[%clk
0:02:55.4]} 17. b3 {[%clk 0:02:21.5]} 17... b5 {[%clk 0:02:52.8]} 18. a4 {[%clk
0:02:21]} 18... Bg4 {[%clk 0:02:43.8]} 19. Qe1 {[%clk 0:02:19.8]} 19... Qc7
{[%clk 0:02:42.2]} 20. axb5 {[%clk 0:02:16.2]} 20... axb5 {[%clk 0:02:43]} 21.
bxc4 {[%clk 0:02:16.4]} 21... bxc4 {[%clk 0:02:21.7]} 22. Nc3 {[%clk 0:02:16.5]}
22... Be6 {[%clk 0:02:22.6]} 23. Qg3 {[%clk 0:02:07.6]} 23... Qxg3 {[%clk
0:02:21.3]} 24. hxg3 {[%clk 0:02:09.5]} 24... Nc6 {[%clk 0:02:18.8]} 25. Rfb1
{[%clk 0:02:04]} 25... Rxa1 {[%clk 0:02:17.2]} 26. Rxa1 {[%clk 0:02:04]} 26...
Nb4 {[%clk 0:02:19.1]} 27. Bd1 {[%clk 0:02:02.5]} 27... Bg4 {[%clk 0:02:18]} 28.
Ba4 {[%clk 0:01:55.6]} 28... Ra8 {[%clk 0:02:13.8]} 29. Rb1 {[%clk 0:01:54.8]}
29... Na2 {[%clk 0:02:07.3]} 30. Bc6 {[%clk 0:01:34]} 30... Nxc3 {[%clk
0:02:07]} 31. Bxa8 {[%clk 0:01:35.1]} 31... Nxb1 {[%clk 0:02:08.3]} 32. Nxb1
{[%clk 0:01:37]} 32... Kf7 {[%clk 0:02:06.5]} 33. Nc3 {[%clk 0:01:37.7]} 33...
Ke6 {[%clk 0:02:07.9]} 34. Kf2 {[%clk 0:01:38.5]} 34... Kd6 {[%clk 0:02:07.8]}
35. Bb7 {[%clk 0:01:36.7]} 35... Bd7 {[%clk 0:02:07.9]} 36. Ke2 {[%clk
0:01:29.9]} 36... Bc6 {[%clk 0:02:07.1]} 37. Bc8 {[%clk 0:01:31.3]} 37... Kc7
{[%clk 0:02:04.8]} 38. Bh3 {[%clk 0:01:29.1]} 38... Kd6 {[%clk 0:02:00.1]} 39.
Kd2 {[%clk 0:01:29.7]} 39... g6 {[%clk 0:01:56.9]} 40. Ne2 {[%clk 0:01:27.1]}
40... h5 {[%clk 0:01:56.2]} 41. Bc8 {[%clk 0:01:24.1]} 41... g5 {[%clk
0:01:53.3]} 42. Bf5 {[%clk 0:01:23.6]} 42... Bd7 {[%clk 0:01:53.8]} 43. Bg6
{[%clk 0:01:22.1]} 43... Be6 {[%clk 0:01:46.7]} 44. Kc3 {[%clk 0:01:20.6]} 44...
Ke7 {[%clk 0:01:47.7]} 45. Kb4 {[%clk 0:01:18.3]} 45... Kf8 {[%clk 0:01:48.6]}
46. g4 {[%clk 0:01:12.7]} 46... hxg4 {[%clk 0:01:48.4]} 47. Ng3 {[%clk
0:01:11.9]} 47... Ke7 {[%clk 0:01:46.4]} 48. Bh5 {[%clk 0:01:08.9]} 48... Kd6
{[%clk 0:01:42.2]} 49. Bg6 {[%clk 0:01:09.9]} 49... Kc6 {[%clk 0:01:43.2]} 50.
Bf5 {[%clk 0:01:04.5]} 50... Bxf5 {[%clk 0:01:37.7]} 51. Nxf5 {[%clk 0:01:06.4]}
51... Nh5 {[%clk 0:01:38.7]} 52. Nh6 {[%clk 0:01:01.9]} 52... g3 {[%clk
0:01:35.7]} 53. Nf7 {[%clk 0:01:00.3]} 53... Nf4 {[%clk 0:01:19.4]} 54. exf4
{[%clk 0:00:47.7]} 54... gxf4 {[%clk 0:01:20.5]} 55. Ne5+ {[%clk 0:00:46.3]}
55... Kc7 {[%clk 0:01:13.1]} 56. Ng4 {[%clk 0:00:46.6]} 56... Kd6 {[%clk
0:01:08.2]} 57. Kc3 {[%clk 0:00:45.5]} 57... Ke6 {[%clk 0:01:09]} 58. Kd2 {[%clk
0:00:46.6]} 58... Kf5 {[%clk 0:01:10.3]} 59. Nh6+ {[%clk 0:00:47.8]} 59... Kg5
{[%clk 0:01:02.1]} 60. Nf7+ {[%clk 0:00:48.1]} 60... Kf6 {[%clk 0:01:03.6]} 61.
Ne5 {[%clk 0:00:47.7]} 61... Kf5 {[%clk 0:01:04.9]} 62. Ke2 {[%clk 0:00:44.2]}
62... c3 {[%clk 0:01:03.7]} 63. Nc6 {[%clk 0:00:38.4]} 63... c2 {[%clk
0:01:02.3]} 64. Kd2 {[%clk 0:00:39.5]} 64... f3 {[%clk 0:01:03.9]} 0-1

[Event "*** Titled Tuesday Blitz"]
[Site "Chess.com"]
[Date "2018.10.02"]
[Round "1"]
[White "Vuk2000"]
[Black "MFBerna"]
[Result "1-0"]
[WhiteElo "2724"]
[BlackElo "2399"]
[TimeControl "180+2"]
[EndTime "13:09:36 PDT"]
[Termination "Vuk2000 won by resignation"]

1. e4 {[%clk 0:03:01.9]} 1... c5 {[%clk 0:02:57]} 2. g3 {[%clk 0:03:01.3]} 2...
Nc6 {[%clk 0:02:54]} 3. Bg2 {[%clk 0:03:01.6]} 3... g6 {[%clk 0:02:55.4]} 4. Ne2
{[%clk 0:02:59.7]} 4... Bg7 {[%clk 0:02:56.7]} 5. c3 {[%clk 0:03:00.9]} 5... e5
{[%clk 0:02:53.9]} 6. O-O {[%clk 0:03:00]} 6... d6 {[%clk 0:02:52]} 7. d3 {[%clk
0:03:01.2]} 7... Nge7 {[%clk 0:02:50.9]} 8. f4 {[%clk 0:03:01.6]} 8... O-O
{[%clk 0:02:48]} 9. Be3 {[%clk 0:03:02.4]} 9... f5 {[%clk 0:02:43.5]} 10. Nd2
{[%clk 0:03:01.1]} 10... Be6 {[%clk 0:02:31.9]} 11. fxe5 {[%clk 0:02:55.8]}
11... Nxe5 {[%clk 0:02:31.8]} 12. d4 {[%clk 0:02:49.4]} 12... Ng4 {[%clk
0:02:32.1]} 13. Bf4 {[%clk 0:02:38.6]} 13... fxe4 {[%clk 0:01:44]} 14. Nxe4
{[%clk 0:02:32.9]} 14... Nf5 {[%clk 0:01:45.2]} 15. dxc5 {[%clk 0:02:25.9]}
15... Nfe3 {[%clk 0:01:30.4]} 16. Bxe3 {[%clk 0:02:23.2]} 16... Nxe3 {[%clk
0:01:32.3]} 17. Rxf8+ {[%clk 0:02:22]} 17... Bxf8 {[%clk 0:01:34.2]} 18. Qd4
{[%clk 0:02:09.5]} 18... Nc2 {[%clk 0:01:14.3]} 19. Qf6 {[%clk 0:01:51]} 19...
Bc4 {[%clk 0:00:29.6]} 20. Qxd8 {[%clk 0:01:42.1]} 20... Rxd8 {[%clk 0:00:29.9]}
21. Rc1 {[%clk 0:01:43.1]} 21... Ne3 {[%clk 0:00:21.4]} 22. Nf4 {[%clk
0:01:34.1]} 22... Nxg2 {[%clk 0:00:21]} 23. Kxg2 {[%clk 0:01:36]} 23... dxc5
{[%clk 0:00:22.5]} 24. b3 {[%clk 0:01:37.6]} 24... Bf7 {[%clk 0:00:22.6]} 25.
Re1 {[%clk 0:01:32]} 25... Bh6 {[%clk 0:00:16.8]} 26. c4 {[%clk 0:01:28.7]}
26... Bg7 {[%clk 0:00:10]} 27. Re2 {[%clk 0:01:26]} 27... b6 {[%clk 0:00:10.9]}
28. Ng5 {[%clk 0:01:26]} 28... Be8 {[%clk 0:00:08.9]} 29. Nge6 {[%clk
0:01:23.9]} 29... Bc6+ {[%clk 0:00:10.4]} 30. Kf2 {[%clk 0:01:24.9]} 30... Re8
{[%clk 0:00:09.6]} 31. Rd2 {[%clk 0:01:21.6]} 31... Bf6 {[%clk 0:00:09.9]} 32.
Nc7 {[%clk 0:01:20.4]} 32... Rd8 {[%clk 0:00:09.7]} 33. Rxd8+ {[%clk 0:01:14.9]}
33... Bxd8 {[%clk 0:00:11.6]} 34. Ncd5 {[%clk 0:01:16.4]} 34... Kf7 {[%clk
0:00:11.2]} 35. Kf3 {[%clk 0:01:14.8]} 35... g5 {[%clk 0:00:12]} 36. Nd3 {[%clk
0:01:15.5]} 36... Ke6 {[%clk 0:00:13.3]} 37. Ke4 {[%clk 0:01:16.4]} 37... Bf6
{[%clk 0:00:13.3]} 38. Nf2 {[%clk 0:01:10.3]} 38... h5 {[%clk 0:00:12.6]} 39. g4
{[%clk 0:01:07.1]} 39... Bd4 {[%clk 0:00:11.2]} 40. Nh3 {[%clk 0:01:03.6]} 40...
hxg4 {[%clk 0:00:11.9]} 41. Nxg5+ {[%clk 0:01:04.8]} 41... Kd6 {[%clk
0:00:12.1]} 42. Nf7+ {[%clk 0:01:04.6]} 42... Kd7 {[%clk 0:00:12.1]} 43. Ne5+
{[%clk 0:01:00.5]} 43... Kd6 {[%clk 0:00:13.4]} 44. Nxg4 {[%clk 0:00:52.6]}
44... b5 {[%clk 0:00:14.4]} 45. Ne3 {[%clk 0:00:42.6]} 45... Bxe3 {[%clk
0:00:10.8]} 46. Kxe3 {[%clk 0:00:43]} 46... b4 {[%clk 0:00:11.3]} 47. Ke4 {[%clk
0:00:25.5]} 47... Be8 {[%clk 0:00:11.4]} 48. Nf4 {[%clk 0:00:25]} 48... Bc6+
{[%clk 0:00:10.2]} 49. Kf5 {[%clk 0:00:19]} 49... a5 {[%clk 0:00:10.7]} 50. h4
{[%clk 0:00:20]} 50... Bd7+ {[%clk 0:00:10.1]} 51. Kf6 {[%clk 0:00:18.2]} 51...
Bc6 {[%clk 0:00:10.5]} 52. h5 {[%clk 0:00:18.6]} 52... Be4 {[%clk 0:00:11.6]}
53. h6 {[%clk 0:00:20.3]} 53... Bh7 {[%clk 0:00:11.6]} 54. Kg7 {[%clk
0:00:20.1]} 1-0

[Event "*** Titled Tuesday Blitz"]
[Site "Chess.com"]
[Date "2018.10.02"]
[Round "1"]
[White "Sychev_Klementy"]
[Black "Bauxi435"]
[Result "1-0"]
[WhiteElo "2814"]
[BlackElo "2435"]
[TimeControl "180+2"]
[EndTime "13:09:38 PDT"]
[Termination "Sychev_Klementy won by resignation"]

1. e4 {[%clk 0:03:00.5]} 1... c5 {[%clk 0:02:59.9]} 2. Nf3 {[%clk 0:03:01.4]}
2... e6 {[%clk 0:03:00.6]} 3. d4 {[%clk 0:03:02.5]} 3... cxd4 {[%clk 0:03:01.6]}
4. Nxd4 {[%clk 0:03:04.4]} 4... Nf6 {[%clk 0:03:02.4]} 5. Nc3 {[%clk 0:03:05.5]}
5... Nc6 {[%clk 0:03:03.2]} 6. Ndb5 {[%clk 0:03:06.3]} 6... Bc5 {[%clk
0:03:03.5]} 7. Nd6+ {[%clk 0:03:05.9]} 7... Ke7 {[%clk 0:03:04.4]} 8. Bf4 {[%clk
0:03:07.5]} 8... e5 {[%clk 0:03:01.6]} 9. Nf5+ {[%clk 0:03:08.1]} 9... Kf8
{[%clk 0:03:02.7]} 10. Bg5 {[%clk 0:03:09.4]} 10... Bb4 {[%clk 0:03:02.7]} 11.
Bc4 {[%clk 0:02:43]} 11... d5 {[%clk 0:02:50.3]} 12. Bxf6 {[%clk 0:02:38.8]}
12... Qxf6 {[%clk 0:02:45.3]} 13. Bxd5 {[%clk 0:02:31]} 13... Bxf5 {[%clk
0:02:44.9]} 14. exf5 {[%clk 0:02:31.8]} 14... Rd8 {[%clk 0:02:33.8]} 15. O-O
{[%clk 0:02:20.9]} 15... Bxc3 {[%clk 0:02:25.7]} 16. bxc3 {[%clk 0:02:20.8]}
16... Ne7 {[%clk 0:02:24.9]} 17. c4 {[%clk 0:02:21.4]} 17... Qxf5 {[%clk
0:02:25.8]} 18. Qd2 {[%clk 0:02:19.6]} 18... b6 {[%clk 0:02:24.4]} 19. a4 {[%clk
0:02:19.3]} 19... e4 {[%clk 0:02:22.5]} 20. Rfd1 {[%clk 0:02:19.1]} 20... Qe5
{[%clk 0:02:17.8]} 21. Qb4 {[%clk 0:02:07.8]} 21... h5 {[%clk 0:02:06.5]} 22.
Bxe4 {[%clk 0:02:03.4]} 22... Rxd1+ {[%clk 0:01:57]} 23. Rxd1 {[%clk 0:02:03.6]}
23... Ke8 {[%clk 0:01:51.1]} 24. Qd2 {[%clk 0:01:46.4]} 24... Qc7 {[%clk
0:01:43.3]} 25. Qg5 {[%clk 0:01:44.5]} 25... Qxc4 {[%clk 0:01:15]} 26. Qxg7
{[%clk 0:01:39.6]} 26... Rg8 {[%clk 0:01:15.4]} 27. Qe5 {[%clk 0:01:40.4]} 27...
f6 {[%clk 0:01:10.2]} 28. Qf4 {[%clk 0:01:31.8]} 28... f5 {[%clk 0:01:05.2]} 29.
Qf3 {[%clk 0:00:32]} 29... Qxe4 {[%clk 0:00:58.1]} 30. Qxh5+ {[%clk 0:00:31.5]}
30... Rg6 {[%clk 0:00:36.6]} 31. Qh8+ {[%clk 0:00:22.6]} 31... Kf7 {[%clk
0:00:36.6]} 32. Qh7+ {[%clk 0:00:23.1]} 32... Kf6 {[%clk 0:00:34.8]} 33. g3
{[%clk 0:00:21.2]} 33... Qc6 {[%clk 0:00:30.8]} 34. Re1 {[%clk 0:00:19.2]} 34...
Nd5 {[%clk 0:00:28.5]} 35. Qh8+ {[%clk 0:00:18.8]} 35... Kf7 {[%clk 0:00:27.2]}
36. Re5 {[%clk 0:00:19.7]} 36... Ne7 {[%clk 0:00:21.6]} 37. Qh7+ {[%clk
0:00:19.1]} 37... Rg7 {[%clk 0:00:21.4]} 38. Rxe7+ {[%clk 0:00:19.6]} 38... Kxe7
{[%clk 0:00:23.3]} 39. Qxg7+ {[%clk 0:00:20.8]} 39... Kd8 {[%clk 0:00:24.8]} 40.
Qf8+ {[%clk 0:00:20.9]} 40... Kc7 {[%clk 0:00:25.9]} 41. Qe7+ {[%clk 0:00:19.5]}
41... Kb8 {[%clk 0:00:26.9]} 42. Qe5+ {[%clk 0:00:18.5]} 42... Kb7 {[%clk
0:00:27.6]} 43. Qxf5 {[%clk 0:00:18.8]} 43... Qxa4 {[%clk 0:00:29]} 44. h4
{[%clk 0:00:20.1]} 44... Qd4 {[%clk 0:00:27.1]} 45. h5 {[%clk 0:00:20.3]} 45...
a5 {[%clk 0:00:28.5]} 46. h6 {[%clk 0:00:21.3]} 46... a4 {[%clk 0:00:29.6]} 47.
h7 {[%clk 0:00:21.6]} 47... Qg7 {[%clk 0:00:28.6]} 48. Qe4+ {[%clk 0:00:20.7]}
48... Ka7 {[%clk 0:00:28.9]} 49. Qxa4+ {[%clk 0:00:21.3]} 49... Kb7 {[%clk
0:00:30.4]} 50. Qe4+ {[%clk 0:00:21.8]} 50... Kc7 {[%clk 0:00:31.1]} 51. Qh4
{[%clk 0:00:18.7]} 51... Qh8 {[%clk 0:00:31.1]} 52. Kh2 {[%clk 0:00:18.7]} 52...
Kd6 {[%clk 0:00:31.1]} 53. Kg2 {[%clk 0:00:18.3]} 53... b5 {[%clk 0:00:32.3]}
54. Qf4+ {[%clk 0:00:17.7]} 54... Kc5 {[%clk 0:00:33.3]} 55. Qg5+ {[%clk
0:00:16.7]} 55... Kc4 {[%clk 0:00:34]} 56. Qg8+ {[%clk 0:00:17]} 1-0